bitfinex/quotes_SOLUSD_20241101
["timestamp","ask_amount","ask_price","bid_price","bid_amount"]
[1730474732971,26.81066334,169.44,169.34,47.47836334]
[1730474732972,26.81066334,169.44,169.38,26.81066334]
[1730474733286,26.81066334,169.46,169.4,26.81066334]
[1730474733664,26.81066334,169.45,169.39,26.81066334]
[1730474734163,488.304,169.49,169.34,20.6677]
[1730474734164,26.81066334,169.43,169.38,41.57026334]
[1730474734367,26.81066334,169.42,169.38,14.7596]
[1730474734682,20.0,169.47,169.38,14.7596]
[1730474734683,26.81066334,169.45,169.39,26.81066334]
[1730474734979,32.71106334,169.48,169.42,26.81066334]
[1730474735986,32.71106334,169.48,169.43,5.9021]
[1730474736192,5.9004,169.48,169.43,32.71276334]
[1730474736779,483.3334,169.49,169.45,26.81066334]
[1730474737179,483.3334,169.49,169.46,26.81066334]
[1730474737371,510.14406334,169.49,169.44,26.81066334]
[1730474740284,26.81066334,169.42,169.38,5.9036]
[1730474741486,26.81066334,169.45,169.39,26.81066334]
[1730474742568,26.81066334,169.45,169.39,32.71406334]
[1730474742782,26.81066334,169.44,169.38,47.47406334]
[1730474742985,26.81066334,169.41,169.36,47.96836334]
[1730474743170,26.81066334,169.41,169.36,6.1152]
[1730474743876,26.81066334,169.4,169.36,6.1152]
[1730474744181,26.81066334,169.39,169.35,14.762]
[1730474744477,26.81066334,169.41,169.35,47.47756334]
[1730474744988,26.81066334,169.39,169.34,5.9051]
[1730474745300,26.81066334,169.4,169.34,32.71576334]
[1730474746485,32.71366334,169.41,169.35,26.81066334]
[1730474746690,26.81066334,169.4,169.35,26.81066334]
[1730474746988,26.81066334,169.4,169.34,26.81066334]
[1730474747503,32.71366334,169.41,169.36,32.71516334]
[1730474747665,26.81066334,169.4,169.36,5.9045]
[1730474748686,5.9033,169.4,169.36,5.9045]
[1730474748995,26.81066334,169.42,169.37,26.81066334]
[1730474749202,26.81066334,169.45,169.39,26.81066334]
[1730474749493,26.81066334,169.44,169.38,26.81066334]
[1730474749667,26.81066334,169.41,169.35,26.81066334]
[1730474749870,26.81066334,169.36,169.29,20.6743]
[1730474750071,26.81066334,169.31,169.28,6.1525182]
[1730474750321,26.81066334,169.3,169.28,6.1525182]
[1730474750475,26.81066334,169.3,169.27,6.5009]
[1730474750986,26.81066334,169.28,169.22,48.08456334]
[1730474751190,26.81066334,169.27,169.22,6.5009]
[1730474751375,26.81066334,169.25,169.2,21.9356]
[1730474751581,26.81066334,169.25,169.2,5.9101]
[1730474751891,26.81066334,169.21,169.2,6.14800055]
[1730474752070,50.71303734,169.21,169.2,6.14800055]
[1730474752489,70.71303734,169.21,169.2,6.14800055]
[1730474752672,97.52370068,169.21,169.2,6.14800055]
[1730474753094,70.71303734,169.21,169.2,6.14800055]
[1730474753497,46.81066334,169.21,169.2,6.14800055]
[1730474753991,26.81066334,169.21,169.2,6.14800055]
[1730474754196,46.81066334,169.21,169.2,6.14800055]
[1730474755485,26.81066334,169.22,169.2,6.14800055]
[1730474755687,26.81066334,169.28,169.2,6.14800055]
[1730474755688,26.81066334,169.23,169.2,6.14800055]
[1730474755996,26.81066334,169.25,169.2,32.95866389]
[1730474756202,26.81066334,169.24,169.2,6.14800055]
[1730474756377,26.81066334,169.22,169.2,6.14800055]
[1730474758094,26.81066334,169.23,169.2,6.14800055]
[1730474758475,26.81066334,169.24,169.2,6.14800055]
[1730474758900,26.81066334,169.23,169.2,6.14800055]
[1730474759280,26.81066334,169.22,169.2,6.14800055]
[1730474760090,26.81066334,169.24,169.2,12.05800055]
[1730474760297,26.93615334,169.26,169.21,26.81066334]
[1730474760478,26.81066334,169.27,169.22,26.81066334]
[1730474760794,26.81066334,169.29,169.24,26.81066334]
[1730474761099,26.81066334,169.34,169.28,26.81066334]
[1730474761300,26.81066334,169.35,169.3,26.81066334]
[1730474761678,26.81066334,169.37,169.31,26.81066334]
[1730474761879,26.81066334,169.38,169.32,26.81066334]
[1730474762596,26.81066334,169.38,169.33,5.9056]
[1730474762995,26.81066334,169.38,169.33,47.48026334]
[1730474763301,26.81066334,169.38,169.33,20.6696]
[1730474763495,26.81066334,169.39,169.33,47.48026334]
[1730474763898,26.81066334,169.38,169.33,47.48026334]
[1730474764207,26.81066334,169.37,169.33,20.6696]
[1730474764390,26.81066334,169.34,169.31,12.1966]
[1730474764702,26.81066334,169.32,169.29,14.767]
[1730474764907,26.81066334,169.31,169.29,20.674]
[1730474765087,26.81066334,169.32,169.29,20.674]
[1730474765800,26.81066334,169.32,169.29,14.767]
[1730474766058,26.81066334,169.34,169.29,14.767]
[1730474766749,26.81066334,169.36,169.3,26.81066334]
[1730474767247,26.81066334,169.36,169.31,26.81066334]
[1730474767430,26.81066334,169.33,169.29,14.767]
[1730474767848,26.81066334,169.32,169.29,20.674]
[1730474768237,26.81066334,169.34,169.29,20.674]
[1730474769150,26.81066334,169.32,169.29,14.767]
[1730474769442,26.81066334,169.3,169.22,42.87226334]
[1730474769663,26.81066334,169.27,169.22,42.87226334]
[1730474770256,26.81066334,169.28,169.23,53.6418659]
[1730474770435,26.81066334,169.3,169.25,26.81066334]
[1730474771351,26.81066334,169.32,169.27,26.81066334]
[1730474771554,26.81066334,169.33,169.28,26.81066334]
[1730474771746,26.81066334,169.33,169.27,26.81066334]
[1730474771939,26.81066334,169.32,169.27,26.81066334]
[1730474772453,26.81066334,169.32,169.28,5.9073]
[1730474772652,26.81066334,169.33,169.28,5.9073]
[1730474772856,26.81066334,169.33,169.28,20.6757]
[1730474773559,26.81066334,169.34,169.28,47.48636334]
[1730474773936,26.81066334,169.34,169.29,26.81066334]
[1730474774132,26.81066334,169.36,169.3,26.81066334]
[1730474774342,26.81066334,169.36,169.31,26.81066334]
[1730474774555,26.81066334,169.35,169.3,26.81066334]
[1730474774859,26.81066334,169.34,169.28,26.81066334]
[1730474775045,26.81066334,169.33,169.28,26.81066334]
[1730474775247,26.81066334,169.33,169.27,26.81066334]
[1730474775445,26.81066334,169.33,169.28,26.81066334]
[1730474775647,26.81066334,169.35,169.3,26.81066334]
[1730474775957,26.81066334,169.36,169.3,26.81066334]
[1730474776156,26.81066334,169.38,169.33,6.5435]
[1730474776335,21.1606,169.51,169.33,6.5435]
[1730474776662,21.1606,169.51,169.34,50.1946]
[1730474777462,26.81066334,169.47,169.42,26.81066334]
[1730474778071,26.81066334,169.44,169.39,26.81066334]
[1730474778356,16.19,169.51,169.34,50.1946]
[1730474778357,26.81066334,169.43,169.38,26.81066334]
[1730474778539,26.81066334,169.44,169.39,47.47296334]
[1730474778741,26.81066334,169.44,169.39,26.81066334]
[1730474779247,26.81066334,169.48,169.42,26.81066334]
[1730474779456,510.14406334,169.49,169.44,26.81066334]
[1730474779638,483.3334,169.49,169.44,26.81066334]
[1730474780437,510.14406334,169.49,169.44,26.81066334]
[1730474780632,510.14406334,169.49,169.44,32.71226334]
[1730474781142,26.81066334,169.45,169.4,26.81066334]
[1730474781337,26.81066334,169.44,169.38,14.7588]
[1730474781555,26.81066334,169.41,169.38,14.7588]
[1730474782253,26.81066334,169.42,169.38,14.7588]
[1730474782647,26.81066334,169.42,169.38,20.6626]
[1730474782849,26.81066334,169.43,169.38,20.6626]
[1730474783552,26.81066334,169.4,169.36,5.9042]
[1730474783751,26.81066334,169.41,169.36,32.71486334]
[1730474783958,26.81066334,169.4,169.36,5.9042]
[1730474785565,26.81066334,169.38,169.35,5.9048]
[1730474785951,26.81066334,169.39,169.35,5.9048]
[1730474786555,26.81066334,169.4,169.35,32.71546334]
[1730474786754,26.81066334,169.4,169.35,47.47776334]
[1730474786959,26.81066334,169.38,169.35,20.6671]
[1730474787673,26.81066334,169.38,169.35,14.7623]
[1730474788355,23.776884,169.48,169.35,14.7623]
[1730474788356,26.81066334,169.41,169.35,41.57296334]
[1730474788555,26.81066334,169.42,169.37,26.81066334]
[1730474789166,26.81066334,169.44,169.39,26.81066334]
[1730474789668,26.81066334,169.43,169.38,26.81066334]
[1730474789851,26.81066334,169.43,169.39,20.6623]
[1730474790269,26.81066334,169.44,169.39,47.47296334]
[1730474790461,26.81066334,169.47,169.42,26.81066334]
[1730474790663,510.14406334,169.49,169.44,26.81066334]
[1730474790867,510.14406334,169.49,169.43,26.81066334]
[1730474791178,483.3334,169.49,169.48,26.81066334]
[1730474792677,483.3334,169.49,169.48,32.71106334]
[1730474793264,483.3334,169.49,169.47,26.81066334]
[1730474793464,483.3334,169.49,169.44,38.72536334]
[1730474794066,516.04416334,169.49,169.44,32.82396334]
[1730474794266,489.2335,169.49,169.44,38.72556334]
[1730474794568,489.2335,169.49,169.45,26.81066334]
[1730474794877,483.3334,169.49,169.45,26.81066334]
[1730474795178,483.3334,169.49,169.44,38.72556334]
[1730474795566,489.2334,169.49,169.44,38.72556334]
[1730474795767,516.04406334,169.49,169.44,32.71226334]
[1730474796382,489.2334,169.49,169.44,32.71226334]
[1730474797968,516.04406334,169.49,169.43,26.81066334]
[1730474798351,26.81066334,169.46,169.41,26.81066334]
[1730474798755,26.81066334,169.46,169.4,26.6941]
[1730474798756,510.14406334,169.49,169.43,26.81066334]
[1730474798981,483.3334,169.49,169.46,26.81066334]
[1730474799362,483.3334,169.49,169.4,26.6941]
[1730474799363,483.3334,169.49,169.45,26.81066334]
[1730474799688,510.14406334,169.49,169.44,26.81066334]
[1730474800161,483.3334,169.49,169.46,26.81066334]
[1730474800860,483.3334,169.49,169.45,26.81066334]
[1730474801172,483.3334,169.49,169.4,6.0333]
[1730474801173,26.81066334,169.46,169.4,26.6937]
[1730474801357,26.81066334,169.45,169.4,26.6937]
[1730474801769,26.81066334,169.45,169.4,53.50436334]
[1730474801971,26.81066334,169.44,169.38,26.81066334]
[1730474802165,26.81066334,169.44,169.38,32.71446334]
[1730474802453,26.81066334,169.44,169.39,26.81066334]
[1730474803080,26.81066334,169.44,169.38,32.71446334]
[1730474803580,32.71246334,169.44,169.39,26.81066334]
[1730474803971,26.81066334,169.43,169.38,41.57036334]
[1730474804160,26.81066334,169.4,169.36,12.29027814]
[1730474804355,26.81066334,169.43,169.37,26.81066334]
[1730474804873,32.71246334,169.44,169.38,26.81066334]
[1730474805258,26.81066334,169.43,169.38,26.81066334]
[1730474805461,26.81066334,169.43,169.38,5.9038]
[1730474806787,26.81066334,169.43,169.38,47.47416334]
[1730474808466,26.81066334,169.43,169.38,41.57036334]
[1730474809781,32.71246334,169.44,169.39,26.81066334]
[1730474809982,26.81066334,169.46,169.41,26.81066334]
[1730474810178,20.0,169.46,169.42,26.81066334]
[1730474810365,20.0,169.46,169.41,26.81066334]
[1730474810679,26.81066334,169.47,169.42,26.81066334]
[1730474810886,26.81066334,169.47,169.41,26.81066334]
[1730474811182,26.81066334,169.45,169.4,26.81066334]
[1730474811879,26.81066334,169.45,169.4,32.71356334]
[1730474812084,483.3334,169.49,169.4,20.6608]
[1730474812085,26.81066334,169.47,169.4,20.6608]
[1730474812286,483.3334,169.49,169.46,26.81066334]
[1730474812474,483.3334,169.49,169.48,26.81066334]
[1730474812782,483.3334,169.49,169.47,26.81066334]
[1730474812957,483.3334,169.49,169.48,26.81066334]
[1730474813880,483.3334,169.49,169.46,32.88006334]
[1730474814067,483.3334,169.49,169.46,38.78096334]
[1730474814669,483.3334,169.49,169.46,11.9703]
[1730474814870,483.3334,169.49,169.46,38.78096334]
[1730474815770,483.3334,169.49,169.48,26.81066334]
[1730474816784,483.3334,169.49,169.47,20.6525]
[1730474817283,483.3334,169.49,169.48,26.81066334]
[1730474817671,483.3334,169.49,169.48,32.71106334]
[1730474820888,483.3334,169.49,169.48,46.63961583]
[1730474821087,483.3334,169.49,169.48,22.61175183]
[1730474823177,483.3334,169.49,169.47,31.46315183]
[1730474823375,483.3334,169.49,169.45,22.61275183]
[1730474823595,483.3334,169.49,169.48,16.71135183]
[1730474824577,483.3334,169.49,169.48,40.48823583]
[1730474825290,483.3334,169.49,169.48,46.38863583]
[1730474825495,483.3334,169.49,169.48,66.63961583]
[1730474826101,393.90370939,169.49,169.48,73.08180583]
[1730474826789,387.23710939,169.49,169.48,73.08180583]
[1730474827093,308.22507217,169.49,169.48,105.34545766]
[1730474827483,301.55847217,169.49,169.48,105.34545766]
[1730474827689,281.47607217,169.49,169.48,91.65355766]
[1730474828093,269.92507217,169.49,169.48,91.65355766]
[1730474828401,227.01649113,169.49,169.48,91.65355766]
[1730474828600,101.42637347,169.49,169.48,91.65355766]
[1730474828808,68.356289,169.49,169.48,91.65355766]
[1730474829002,21.43752863,169.49,169.48,91.65355766]
[1730474829183,16.1467216,169.65,169.52,0.12549]
[1730474829382,16.1467216,169.65,169.63,16.71135183]
[1730474830291,0.5987216,169.65,169.64,16.71135183]
[1730474831105,38.58415183,169.79,169.64,77.57605766]
[1730474831305,27.7625,169.79,169.76,16.71135183]
[1730474831482,27.7625,169.79,169.75,16.71135183]
[1730474831899,16.71135183,169.78,169.73,16.71135183]
[1730474832087,16.71135183,169.78,169.72,16.71135183]
[1730474832403,5.89,169.78,169.74,16.71135183]
[1730474832788,5.89,169.78,169.74,26.6625939]
[1730474832989,21.8728,169.79,169.74,26.6625939]
[1730474833183,27.7624,169.79,169.76,26.6625939]
[1730474833390,27.7624,169.79,169.75,26.6625939]
[1730474833706,27.7624,169.79,169.7,14.7313]
[1730474833707,27.7624,169.79,169.76,26.6625939]
[1730474834302,21.8728,169.79,169.76,26.6625939]
[1730474835009,21.8728,169.79,169.78,26.6625939]
[1730474835184,21.8728,169.79,169.73,14.7288]
[1730474835185,21.8728,169.79,169.77,26.6625939]
[1730474835391,21.8728,169.79,169.76,26.6625939]
[1730474835789,26.6625939,169.78,169.73,26.6625939]
[1730474836196,27.7624,169.79,169.75,26.6625939]
[1730474836606,21.8728,169.79,169.76,26.6625939]
[1730474836802,21.8728,169.79,169.77,26.6625939]
[1730474836994,21.8728,169.79,169.78,26.6625939]
[1730474837910,15.7593,169.79,169.78,26.6625939]
[1730474838607,0.5987216,169.82,169.78,26.6625939]
[1730474838904,0.5987216,169.82,169.79,26.6625939]
[1730474839114,6.4874216,169.82,169.78,26.6625939]
[1730474839289,33.1500155,169.82,169.77,26.6625939]
[1730474839715,6.4874216,169.82,169.77,26.6625939]
[1730474840119,6.4874216,169.82,169.78,26.6625939]
[1730474840312,6.4874216,169.82,169.79,26.6625939]
[1730474840611,0.5987216,169.82,169.8,26.6625939]
[1730474840796,6.4873216,169.82,169.8,26.6625939]
[1730474841002,6.4873216,169.82,169.79,26.6625939]
[1730474841320,50.4394779,169.81,169.76,26.6625939]
[1730474841522,50.4394779,169.77,169.72,26.6625939]
[1730474841817,26.6625939,169.77,169.72,26.6625939]
[1730474842118,26.6625939,169.77,169.73,26.6625939]
[1730474842497,23.776884,169.77,169.74,26.6625939]
[1730474842700,5.8906,169.76,169.72,26.6625939]
[1730474843820,5.8906,169.76,169.73,26.6625939]
[1730474844197,5.8906,169.76,169.74,26.6625939]
[1730474844408,5.8906,169.76,169.72,26.6625939]
[1730474845817,23.776884,169.75,169.71,26.6625939]
[1730474845997,15.5677,169.74,169.7,26.6625939]
[1730474846199,23.776884,169.73,169.68,26.6625939]
[1730474846600,26.6625939,169.72,169.67,26.6625939]
[1730474847512,5.892,169.72,169.67,26.6625939]
[1730474847905,5.892,169.72,169.68,26.6625939]
[1730474848822,32.5545939,169.72,169.67,26.6625939]
[1730474849022,23.776884,169.71,169.67,26.6625939]
[1730474849702,5.8927,169.7,169.67,26.6625939]
[1730474849911,5.8927,169.7,169.65,27.54637832]
[1730474850112,26.6625939,169.68,169.65,0.88378442]
[1730474850516,50.4394779,169.69,169.65,0.88378442]
[1730474850824,20.0,169.72,169.68,26.6625939]
[1730474851126,26.6625939,169.72,169.67,26.6625939]
[1730474851622,5.8924,169.71,169.68,26.6625939]
[1730474852211,23.776884,169.73,169.69,26.6625939]
[1730474852723,27.8611,169.74,169.71,26.6625939]
[1730474854000,21.9696,169.74,169.71,26.6625939]
[1730474854207,21.9696,169.74,169.7,26.6625939]
[1730474854414,27.861,169.74,169.7,26.6625939]
[1730474855224,23.776884,169.72,169.69,26.6625939]
[1730474855406,54.5235939,169.74,169.66,20.6292]
[1730474855407,26.6625939,169.71,169.66,26.6625939]
[1730474855613,26.6625939,169.71,169.65,27.54637832]
[1730474855918,6.01749,169.72,169.68,26.6625939]
[1730474856123,5.892,169.72,169.68,26.6625939]
[1730474856649,5.892,169.72,169.69,26.6625939]
[1730474858434,5.8918,169.73,169.71,16.67036867]
[1730474858652,27.861,169.74,169.71,16.67036867]
[1730474860538,15.5677,169.74,169.71,16.67036867]
[1730474860746,28.1173,169.78,169.73,16.67036867]
[1730474861039,28.1173,169.78,169.75,16.67036867]
[1730474861732,15.6551,169.78,169.76,16.67036867]
[1730474862038,5.889,169.81,169.77,16.67036867]
[1730474862245,5.889,169.81,169.78,16.67036867]
[1730474863832,40.44725267,169.8,169.75,16.67036867]
[1730474864343,23.776884,169.78,169.75,16.67036867]
[1730474864722,23.902374,169.79,169.75,16.67036867]
[1730474865031,22.55936867,169.81,169.76,16.67036867]
[1730474865229,5.889,169.81,169.77,16.67036867]
[1730474865435,5.889,169.81,169.76,16.67036867]
[1730474865655,22.55936867,169.81,169.76,16.67036867]
[1730474866331,5.889,169.81,169.77,16.67036867]
[1730474868131,22.55936867,169.81,169.76,16.67036867]
[1730474869143,16.67036867,169.8,169.75,16.67036867]
[1730474869341,16.67036867,169.8,169.74,31.39876867]
[1730474869725,5.8896,169.79,169.74,37.29006867]
[1730474870049,22.55996867,169.79,169.74,37.29006867]
[1730474870242,22.55996867,169.79,169.74,31.39876867]
[1730474871451,22.55996867,169.79,169.74,16.67036867]
[1730474871745,22.55996867,169.79,169.73,16.67036867]
[1730474872052,40.44725267,169.78,169.73,16.67036867]
[1730474873253,40.44725267,169.78,169.74,16.67036867]
[1730474873553,5.8903,169.77,169.74,16.67036867]
[1730474874841,23.776884,169.79,169.75,16.67036867]
[1730474875550,16.67036867,169.78,169.73,16.67036867]
[1730474876149,46.33705267,169.79,169.74,16.67036867]
[1730474876856,29.666684,169.79,169.75,16.67036867]
[1730474877264,46.33705267,169.79,169.74,22.56146867]
[1730474877941,16.67036867,169.78,169.73,16.67036867]
[1730474878261,16.67036867,169.75,169.72,14.7301]
[1730474878556,16.67036867,169.73,169.69,20.87769915]
[1730474878760,16.67036867,169.7,169.69,6.14509915]
[1730474878934,40.44725267,169.71,169.66,22.56436867]
[1730474879136,23.776884,169.71,169.67,16.67036867]
[1730474879356,16.67036867,169.72,169.67,16.67036867]
[1730474879555,22.4871,169.74,169.7,16.67036867]
[1730474879754,23.776884,169.73,169.7,16.67036867]
[1730474880263,36.67036867,169.77,169.72,16.67036867]
[1730474880560,16.67036867,169.75,169.7,16.67036867]
[1730474881248,16.67036867,169.76,169.71,16.67036867]
[1730474881566,22.56116867,169.76,169.71,5.8923]
[1730474881763,16.67036867,169.74,169.7,14.7317]
[1730474882061,16.67036867,169.72,169.67,16.67036867]
[1730474882255,16.67036867,169.71,169.66,37.29926867]
[1730474882451,23.776884,169.75,169.7,16.67036867]
[1730474882643,16.67036867,169.74,169.69,16.67036867]
[1730474883357,40.44725267,169.75,169.7,16.67036867]
[1730474883658,5.8911,169.75,169.7,22.56296867]
[1730474884051,22.56096867,169.76,169.71,16.67036867]
[1730474884246,38.23866867,169.78,169.73,16.67036867]
[1730474884743,16.67036867,169.77,169.72,16.67036867]
[1730474885650,16.67036867,169.77,169.72,22.56216867]
[1730474885959,22.56066867,169.77,169.72,22.56216867]
[1730474887356,16.67036867,169.75,169.7,31.40216867]
[1730474888062,16.67036867,169.74,169.7,14.7318]
[1730474888365,16.67036867,169.75,169.7,31.40216867]
[1730474889564,45.565984,169.7,169.66,6.15387805]
[1730474889790,16.67036867,169.68,169.66,6.15387805]
[1730474889968,16.67036867,169.68,169.65,0.88378442]
[1730474890458,45.565984,169.7,169.65,0.88378442]
[1730474890459,16.67036867,169.67,169.65,0.88378442]
[1730474890966,21.7891,169.7,169.66,16.67036867]
[1730474891162,16.67036867,169.67,169.65,0.88378442]
[1730474891351,16.67036867,169.66,169.65,0.88378442]
[1730474891947,22.56416867,169.67,169.65,0.88378442]
[1730474892263,5.8934,169.68,169.65,0.88378442]
[1730474892463,16.67036867,169.7,169.65,0.88378442]
[1730474892644,16.67036867,169.71,169.65,38.18455309]
[1730474892968,16.67036867,169.67,169.65,0.88378442]
[1730474893151,16.67036867,169.68,169.65,0.88378442]
[1730474893347,16.67036867,169.69,169.65,0.88378442]
[1730474893766,23.776884,169.68,169.65,0.88378442]
[1730474894152,36.2333,169.73,169.65,0.88378442]
[1730474894153,38.17426867,169.73,169.67,16.67036867]
[1730474894356,21.2917,169.73,169.68,16.67036867]
[1730474894564,15.3997,169.73,169.69,16.67036867]
[1730474895570,32.07006867,169.73,169.68,16.67036867]
[1730474895752,32.07006867,169.73,169.68,22.56346867]
[1730474896153,32.07006867,169.73,169.68,37.29706867]
[1730474896353,16.67036867,169.69,169.65,0.88378442]
[1730474896562,16.67036867,169.67,169.65,0.88378442]
[1730474897780,16.67036867,169.68,169.65,0.88378442]
[1730474898158,40.44725267,169.69,169.65,0.88378442]
[1730474898467,40.44725267,169.69,169.65,6.77818442]
[1730474898666,16.67036867,169.67,169.65,0.88378442]
[1730474899653,23.776884,169.69,169.65,0.88378442]
[1730474899654,16.67036867,169.66,169.65,0.88378442]
[1730474900165,23.776884,169.67,169.65,0.88378442]
[1730474901076,22.56376867,169.68,169.65,0.88378442]
[1730474901377,16.67036867,169.72,169.67,16.67036867]
[1730474901565,22.56246867,169.72,169.67,16.67036867]
[1730474901878,16.67036867,169.69,169.65,21.51438442]
[1730474902075,16.67036867,169.7,169.65,38.18475309]
[1730474902878,16.67036867,169.68,169.65,0.88378442]
[1730474904078,22.56266867,169.72,169.67,16.67036867]
[1730474904279,16.67036867,169.71,169.66,16.67036867]
[1730474904982,22.56276867,169.71,169.66,22.56426867]
[1730474905360,22.56276867,169.71,169.66,5.8939]
[1730474906785,16.67036867,169.68,169.65,0.88378442]
[1730474908585,16.67036867,169.67,169.65,0.88378442]
[1730474909295,22.56406867,169.68,169.65,0.88378442]
[1730474909674,16.67036867,169.67,169.65,0.88378442]
[1730474909875,16.67036867,169.66,169.65,0.88378442]
[1730474910691,40.44725267,169.66,169.65,0.88378442]
[1730474910989,46.34135267,169.66,169.65,0.88378442]
[1730474911489,46.34135267,169.66,169.6,12.04477127]
[1730474911490,0.25098,169.64,169.6,6.14897127]
[1730474911692,23.776884,169.6,169.53,14.7465]
[1730474911898,16.67036867,169.57,169.54,6.14958583]
[1730474912306,16.67036867,169.56,169.53,14.7465]
[1730474913091,16.67036867,169.56,169.53,20.6451]
[1730474914020,16.67036867,169.57,169.53,20.6451]
[1730474914296,23.776884,169.58,169.54,16.67036867]
[1730474914477,32.39006867,169.57,169.53,20.6451]
[1730474917280,15.7197,169.57,169.53,37.31546867]
[1730474917475,15.7197,169.57,169.53,20.6451]
[1730474917674,32.39006867,169.57,169.53,20.6451]
[1730474919400,32.39006867,169.57,169.52,22.8199018]
[1730474919401,16.67036867,169.55,169.52,6.14953313]
[1730474919695,16.67036867,169.53,169.52,6.14953313]
[1730474919898,16.67036867,169.53,169.5,20.6484]
[1730474920098,16.67036867,169.53,169.5,26.79941152]
[1730474920672,16.67036867,169.54,169.5,26.79941152]
[1730474921301,40.44725267,169.55,169.5,26.79941152]
[1730474921600,23.776884,169.55,169.51,16.67036867]
[1730474921775,23.776884,169.56,169.52,16.67036867]
[1730474921971,40.44725267,169.53,169.5,6.15101152]
[1730474922198,40.44725267,169.52,169.5,6.15101152]
[1730474922393,23.776884,169.51,169.47,37.32256867]
[1730474922597,23.776884,169.51,169.48,6.15286367]
[1730474922977,23.776884,169.53,169.49,22.57036867]
[1730474923298,23.776884,169.54,169.5,16.67036867]
[1730474923481,22.56806867,169.56,169.51,16.67036867]
[1730474923794,38.28736867,169.57,169.52,16.67036867]
[1730474925184,23.776884,169.56,169.52,16.67036867]
[1730474925499,15.7197,169.57,169.54,16.67036867]
[1730474925706,15.7197,169.57,169.53,16.67036867]
[1730474926392,16.67036867,169.59,169.52,20.6464]
[1730474926591,44.15156867,169.63,169.57,16.67036867]
[1730474926973,44.15156867,169.63,169.56,16.67036867]
[1730474926974,16.67036867,169.61,169.56,16.67036867]
[1730474927176,22.56666867,169.6,169.55,22.56816867]
[1730474927377,16.67036867,169.59,169.55,14.7449]
[1730474927803,16.67036867,169.58,169.53,22.56866867]
[1730474928104,16.67036867,169.55,169.52,14.7475]
[1730474928483,16.67036867,169.57,169.52,37.31686867]
[1730474928884,23.776884,169.56,169.52,20.6465]
[1730474929084,40.44725267,169.56,169.52,14.7475]
[1730474930081,46.34495267,169.56,169.52,20.6465]
[1730474930302,16.67036867,169.55,169.52,14.7475]
[1730474930597,23.776884,169.56,169.52,37.31686867]
[1730474932508,23.776884,169.56,169.52,14.7475]
[1730474932691,40.44725267,169.53,169.49,14.7498]
[1730474933005,15.0298,169.54,169.51,16.67036867]
[1730474933591,15.0298,169.54,169.5,16.67036867]
[1730474934089,31.70016867,169.54,169.49,37.32016867]
[1730474934618,23.776884,169.53,169.49,37.32016867]
[1730474938089,23.776884,169.53,169.5,22.56996867]
[1730474938411,16.67036867,169.52,169.48,12.0541081]
[1730474938597,16.67036867,169.52,169.48,5.9003]
[1730474939495,40.44725267,169.51,169.47,20.6525]
[1730474939702,16.67036867,169.51,169.47,20.6525]
[1730474940297,46.34605267,169.53,169.47,37.32286867]
[1730474940699,16.67036867,169.52,169.47,37.32286867]
[1730474941401,23.776884,169.51,169.47,37.32286867]
[1730474941918,23.776884,169.51,169.47,20.6525]
[1730474942298,23.776884,169.51,169.47,37.32286867]
[1730474942733,22.57076867,169.48,169.46,6.14380223]
[1730474943011,20.25098,169.5,169.44,16.67036867]
[1730474943012,42.82124867,169.5,169.44,16.67036867]
[1730474943215,20.0,169.5,169.46,16.67036867]
[1730474943397,23.776884,169.5,169.46,16.67036867]
[1730474943601,40.44725267,169.5,169.45,16.67036867]
[1730474944010,23.776884,169.5,169.46,16.67036867]
[1730474945417,46.34705267,169.5,169.45,22.57146867]
[1730474945712,29.676684,169.5,169.46,16.67036867]
[1730474947518,25.8993,169.51,169.47,16.67036867]
[1730474947822,20.0,169.51,169.47,16.67036867]
[1730474948219,16.67036867,169.53,169.48,16.67036867]
[1730474948426,15.0298,169.54,169.51,16.67036867]
[1730474948722,15.0298,169.54,169.5,16.67036867]
[1730474949016,15.0298,169.54,169.53,16.67036867]
[1730474949423,15.0298,169.54,169.46,14.7527]
[1730474949424,15.0298,169.54,169.51,16.67036867]
[1730474949620,15.0298,169.54,169.52,16.67036867]
[1730474950502,40.44725267,169.53,169.47,16.67036867]
[1730474950701,16.67036867,169.5,169.46,14.7527]
[1730474951112,16.67036867,169.52,169.47,22.57076867]
[1730474951513,29.675684,169.53,169.49,16.67036867]
[1730474951826,16.67036867,169.52,169.47,37.32256867]
[1730474953527,16.67036867,169.53,169.48,16.67036867]
[1730474955420,16.67036867,169.53,169.48,5.9001]
[1730474956320,16.67036867,169.52,169.48,5.9001]
[1730474956504,16.67036867,169.51,169.47,14.7518]
[1730474956702,16.67036867,169.48,169.44,14.7544]
[1730474956903,16.67036867,169.46,169.42,12.0423603]